bitfinex/quotes_BTCUSD_20241226
["timestamp","ask_amount","ask_price","bid_price","bid_amount"]
[1735209574916,0.0010856,95496.0,95495.0,0.53265282]
[1735209575137,0.0020856,95496.0,95495.0,0.54165282]
[1735209575948,0.0010856,95496.0,95495.0,0.53765282]
[1735209576365,0.0020856,95496.0,95495.0,0.54165282]
[1735209577897,0.0020856,95496.0,95495.0,0.4376665]
[1735209582691,0.0020856,95496.0,95495.0,0.5376665]
[1735209591136,0.0020856,95496.0,95495.0,0.64165282]
[1735209592587,0.0020856,95496.0,95495.0,0.66465282]
[1735209592786,0.0020856,95496.0,95495.0,0.81465282]
[1735209592944,0.0020856,95496.0,95495.0,0.91863914]
[1735209593540,0.0020856,95496.0,95495.0,1.26542749]
[1735209593818,8.55e-05,95513.0,95512.0,0.4857923]
[1735209594123,0.00013753,95513.0,95512.0,0.4857923]
[1735209594439,0.00013753,95513.0,95512.0,0.5857923]
[1735209594650,0.00013753,95513.0,95512.0,0.68977862]
[1735209595069,0.00013753,95513.0,95512.0,0.69177862]
[1735209596405,0.00113753,95513.0,95512.0,0.69977862]
[1735209596609,0.00113753,95513.0,95512.0,0.90376494]
[1735209596816,0.00113753,95513.0,95512.0,1.09986494]
[1735209597575,0.00113753,95513.0,95512.0,1.12286494]
[1735209597958,0.00013753,95513.0,95512.0,1.11286494]
[1735209598160,0.00113753,95513.0,95512.0,1.11886494]
[1735209598357,0.00113753,95513.0,95512.0,1.25976266]
[1735209598572,0.00113753,95513.0,95512.0,1.27013656]
[1735209598774,0.00013753,95513.0,95512.0,1.26413656]
[1735209598997,0.00113753,95513.0,95512.0,1.27113656]
[1735209599193,5.3e-07,95513.0,95512.0,1.27113656]
[1735209599399,5.3e-07,95513.0,95512.0,1.28013656]
[1735209599732,5.3e-07,95513.0,95512.0,1.13023884]
[1735209599933,5.3e-07,95513.0,95512.0,1.13923884]
[1735209600157,0.0001712,95537.0,95529.0,0.6051553]
[1735209600367,0.00013773,95530.0,95529.0,0.95663075]
[1735209601568,0.00013773,95530.0,95529.0,0.7272553]
[1735209602172,0.00013773,95530.0,95529.0,0.53546]
[1735209602369,0.00013773,95530.0,95529.0,0.7312553]
[1735209602775,0.00013773,95530.0,95529.0,0.7272553]
[1735209602947,0.00013773,95530.0,95529.0,0.7322553]
[1735209602948,0.00113773,95530.0,95529.0,0.7322553]
[1735209603131,0.00113773,95530.0,95529.0,0.7412553]
[1735209603331,0.00113773,95530.0,95529.0,0.83624162]
[1735209603734,0.00113773,95530.0,95529.0,0.84524162]
[1735209604391,0.00013773,95530.0,95529.0,0.84924162]
[1735209604560,0.00013773,95530.0,95529.0,0.95822794]
[1735209605187,9.3e-07,95537.0,95536.0,0.9082403]
[1735209605388,0.00052127,95537.0,95536.0,1.01222662]
[1735209607238,0.0001714,95574.0,95566.0,0.3957953]
[1735209607464,0.0001714,95574.0,95566.0,0.83916062]
[1735209607679,0.00025833,95567.0,95566.0,0.83916062]
[1735209607884,0.00025833,95567.0,95566.0,0.94314694]
[1735209608872,0.00025833,95567.0,95566.0,0.94514694]
[1735209609837,0.00025833,95567.0,95566.0,0.94314694]
[1735209610033,0.00025833,95567.0,95566.0,0.94914694]
[1735209610258,0.0001714,95574.0,95573.0,0.6050593]
[1735209610468,0.0001714,95574.0,95573.0,0.70904562]
[1735209611548,0.0001714,95574.0,95573.0,0.81303194]
[1735209611782,0.0001714,95574.0,95573.0,0.91783194]
[1735209612197,0.0001714,95574.0,95573.0,1.12013194]
[1735209612437,4e-07,95574.0,95573.0,1.12013194]
[1735209612637,4e-07,95574.0,95573.0,1.12913194]
[1735209612848,4e-07,95574.0,95573.0,1.11613194]
[1735209613050,0.07930228,95616.0,95615.0,0.1957953]
[1735209613250,0.19157059,95616.0,95615.0,0.1957953]
[1735209613461,0.19170131,95616.0,95615.0,0.1957953]
[1735209614296,0.19170131,95616.0,95615.0,0.1987953]
[1735209614638,0.19156262,95616.0,95615.0,0.1987953]
[1735209615472,0.19156262,95616.0,95615.0,0.1957953]
[1735209615892,0.19256262,95616.0,95615.0,0.1987953]
[1735209616731,0.19256262,95616.0,95615.0,0.1957953]
[1735209617291,0.19156262,95616.0,95615.0,0.1957953]
[1735209617584,0.19156262,95616.0,95615.0,0.1987953]
[1735209617937,0.19356262,95616.0,95615.0,0.1987953]
[1735209618113,0.19356262,95616.0,95615.0,0.21867483]
[1735209618346,0.00841271,95616.0,95615.0,0.21867483]
[1735209618555,0.00013072,95616.0,95615.0,0.21867483]
[1735209618760,0.00113072,95616.0,95615.0,0.21567483]
[1735209618963,0.00113072,95616.0,95615.0,0.31567483]
[1735209619137,0.00013072,95616.0,95615.0,0.31567483]
[1735209619538,0.00013072,95616.0,95615.0,0.32067483]
[1735209619692,0.00013072,95616.0,95615.0,0.39917483]
[1735209619898,0.00013072,95616.0,95615.0,0.39417483]
[1735209620149,0.00013072,95616.0,95615.0,0.31867483]
[1735209620354,0.00013072,95616.0,95615.0,0.21567483]
[1735209620560,0.00013072,95616.0,95615.0,0.2957953]
[1735209620764,0.00013072,95616.0,95615.0,0.3047953]
[1735209621380,0.00021632,95616.0,95615.0,0.3047953]
[1735209621727,0.00021632,95616.0,95615.0,0.3087953]
[1735209621928,0.00021632,95616.0,95615.0,0.41242913]
[1735209622128,0.00021632,95616.0,95615.0,0.75741545]
[1735209622360,0.00021632,95616.0,95615.0,0.76241545]
[1735209622558,0.00021632,95616.0,95615.0,0.75641545]
[1735209623178,8.56e-05,95626.0,95625.0,0.3957953]
[1735209623487,8.56e-05,95626.0,95625.0,0.64452483]
[1735209624895,8.56e-05,95626.0,95625.0,0.77172483]
[1735209625098,0.47617932,95633.0,95632.0,0.5049303]
[1735209625486,0.47617932,95633.0,95632.0,0.4049303]
[1735209625692,0.47617932,95633.0,95632.0,0.1957953]
[1735209626118,0.47617932,95633.0,95632.0,0.1]
[1735209626523,0.47617932,95633.0,95632.0,0.109]
[1735209626718,0.47617932,95633.0,95632.0,0.2047953]
[1735209626719,0.58016564,95633.0,95632.0,0.2047953]
[1735209627366,0.313435,95632.0,95631.0,0.0957953]
[1735209627523,0.41742132,95632.0,95628.0,0.1]
[1735209627722,0.232141,95629.0,95628.0,0.1]
[1735209627947,0.232141,95629.0,95628.0,0.1957953]
[1735209627948,0.33612732,95629.0,95628.0,0.1957953]
[1735209628927,0.33712732,95629.0,95628.0,0.1957953]
[1735209629485,0.33712732,95629.0,95628.0,0.1987953]
[1735209632082,0.33712732,95629.0,95628.0,0.21867483]
[1735209632083,0.001,95629.0,95628.0,0.21867483]
[1735209632325,0.001,95629.0,95628.0,0.1987953]
[1735209632891,0.00485163,95629.0,95628.0,0.1987953]
[1735209633091,0.0010855,95629.0,95628.0,0.1957953]
[1735209633324,8.55e-05,95629.0,95628.0,0.2017953]
[1735209633522,0.0010855,95629.0,95628.0,0.2017953]
[1735209633724,0.0010855,95629.0,95628.0,0.1957953]
[1735209633926,8.55e-05,95629.0,95628.0,0.2017953]
[1735209634506,8.55e-05,95629.0,95628.0,0.2027953]
[1735209635170,8.55e-05,95629.0,95628.0,0.24298983]
[1735209635369,8.55e-05,95629.0,95628.0,0.1957953]
[1735209635572,8.55e-05,95629.0,95628.0,0.2027953]
[1735209636325,8.55e-05,95629.0,95628.0,0.1957953]
[1735209636559,0.0010855,95629.0,95628.0,0.2037953]
[1735209636973,8.55e-05,95629.0,95628.0,0.26610939]
[1735209637387,8.55e-05,95629.0,95628.0,0.2047953]
[1735209637811,8.55e-05,95629.0,95628.0,0.2037953]
[1735209637947,8.55e-05,95629.0,95628.0,0.20484087]
[1735209638148,8.55e-05,95629.0,95628.0,0.19984087]
[1735209638584,8.55e-05,95629.0,95628.0,0.20884087]
[1735209638795,8.55e-05,95629.0,95628.0,0.1987953]
[1735209639022,8.55e-05,95629.0,95628.0,0.2077953]
[1735209639355,8.55e-05,95629.0,95628.0,0.1987953]
[1735209639484,8.55e-05,95629.0,95628.0,0.1968409]
[1735209639684,8.55e-05,95629.0,95628.0,0.2068409]
[1735209639930,8.55e-05,95629.0,95628.0,0.1967953]
[1735209640150,8.55e-05,95629.0,95628.0,0.19784086]
[1735209640327,8.55e-05,95629.0,95628.0,0.19684086]
[1735209640468,8.55e-05,95629.0,95628.0,0.19984086]
[1735209640691,8.55e-05,95629.0,95628.0,0.20884086]
[1735209640891,8.55e-05,95629.0,95628.0,0.2047953]
[1735209641358,8.55e-05,95629.0,95628.0,0.2077953]
[1735209642294,8.55e-05,95629.0,95628.0,0.1987953]
[1735209642519,8.55e-05,95629.0,95628.0,0.2077953]
[1735209642810,8.55e-05,95629.0,95628.0,0.1987953]
[1735209643180,8.55e-05,95629.0,95628.0,0.2047953]
[1735209643381,8.55e-05,95629.0,95628.0,0.2077953]
[1735209644611,8.55e-05,95629.0,95628.0,0.2079663]
[1735209645207,0.0048123,95629.0,95628.0,0.2079663]
[1735209645370,8.55e-05,95629.0,95628.0,0.2079663]
[1735209645571,0.0048123,95629.0,95628.0,0.1079663]
[1735209645953,0.00481002,95629.0,95628.0,0.112171]
[1735209646162,0.10879634,95629.0,95628.0,0.112171]
[1735209646364,0.10407182,95629.0,95628.0,0.012171]
[1735209646575,0.10878701,95629.0,95628.0,0.012171]
[1735209646788,0.28178701,95629.0,95628.0,0.012171]
[1735209646972,0.28178701,95629.0,95628.0,0.009171]
[1735209647168,0.28178701,95629.0,95628.0,0.000171]
[1735209647407,0.28178701,95629.0,95628.0,0.009171]
[1735209647778,0.28178701,95629.0,95628.0,0.011171]
[1735209648339,0.28178701,95629.0,95628.0,0.009171]
[1735209648693,0.28478701,95629.0,95628.0,0.000171]
[1735209649022,0.28478701,95629.0,95628.0,0.006171]
[1735209649195,0.28478701,95629.0,95628.0,0.000171]
[1735209650109,0.28278701,95629.0,95628.0,0.000171]
[1735209650384,0.28478701,95629.0,95628.0,0.000171]
[1735209650588,0.28578701,95629.0,95628.0,0.000171]
[1735209650864,0.28278701,95629.0,95628.0,0.000171]
[1735209651362,0.28578701,95629.0,95628.0,0.000171]
[1735209652818,0.31635288,95629.0,95628.0,0.000171]
[1735209653024,1.54331988,95629.0,95628.0,0.000171]
[1735209653250,0.76605388,95629.0,95628.0,0.000171]
[1735209653626,0.023,95616.0,95615.0,0.000171]
[1735209653873,0.27835219,95616.0,95615.0,0.000171]
[1735209654082,0.25247386,95616.0,95615.0,0.000171]
[1735209654882,0.53103562,95616.0,95615.0,0.000171]
[1735209655212,2.59478633,95616.0,95615.0,0.000171]
[1735209655345,0.97845262,95616.0,95615.0,0.000171]
[1735209655545,0.73138575,95616.0,95615.0,0.000171]
[1735209655741,0.54045486,95616.0,95615.0,0.000171]
[1735209655971,0.40247386,95616.0,95615.0,0.000171]
[1735209656191,0.40347386,95616.0,95615.0,0.000171]
[1735209656348,0.53029386,95616.0,95615.0,0.000171]
[1735209656807,0.53529386,95616.0,95615.0,0.000171]
[1735209658052,0.40847386,95616.0,95615.0,0.000171]
[1735209658372,0.52411186,95616.0,95615.0,0.000171]
[1735209658582,0.40747386,95616.0,95615.0,0.000171]
[1735209658941,0.41147386,95616.0,95615.0,0.000171]
[1735209659145,0.40647386,95616.0,95615.0,0.000171]
[1735209659343,0.51509286,95616.0,95615.0,0.000171]
[1735209659575,0.56689286,95616.0,95615.0,0.000171]
[1735209660112,0.52009286,95616.0,95615.0,0.000171]
[1735209660308,0.41147386,95616.0,95615.0,0.000171]
[1735209660685,0.52009286,95616.0,95615.0,0.000171]
[1735209661409,1.04302286,95616.0,95615.0,0.000171]
[1735209662640,1.03802286,95616.0,95615.0,0.000171]
[1735209662847,1.03902286,95616.0,95615.0,0.000171]
[1735209663174,1.04302286,95616.0,95615.0,0.000171]
[1735209663381,1.14700918,95616.0,95615.0,0.000171]
[1735209663588,1.06926657,95616.0,95615.0,0.000171]
[1735209663797,0.309202,95601.0,95600.0,0.098171]
[1735209663918,0.93611832,95601.0,95600.0,0.098171]
[1735209664439,0.9407846,95601.0,95600.0,0.098171]
[1735209664985,0.9407846,95601.0,95600.0,0.09830172]
[1735209665216,0.209288,95562.0,95561.0,0.098171]
[1735209665433,0.31327432,95562.0,95561.0,0.1939663]
[1735209665624,0.31790442,95562.0,95561.0,0.1939663]
[1735209665829,0.31790442,95562.0,95561.0,0.098171]
[1735209666394,0.31790442,95562.0,95561.0,0.1939663]
[1735209666793,0.31790442,95562.0,95561.0,0.1979663]
[1735209667344,0.84083442,95562.0,95561.0,0.1979663]
[1735209668072,0.5275601,95562.0,95561.0,0.1979663]
[1735209668197,0.5275601,95562.0,95561.0,0.2590861]
[1735209668402,0.5275601,95562.0,95561.0,0.2749663]
[1735209668599,0.5275601,95562.0,95561.0,0.5248663]
[1735209668823,0.5275601,95562.0,95561.0,0.5250373]
[1735209669226,0.5275601,95562.0,95561.0,0.77902362]
[1735209669428,0.50276322,95562.0,95561.0,0.77902362]
[1735209669633,0.50851859,95562.0,95561.0,0.87900994]
[1735209669836,0.50851859,95562.0,95561.0,0.88200994]
[1735209670288,0.50851859,95562.0,95561.0,0.87900994]
[1735209670723,0.50951859,95562.0,95561.0,0.88800994]
[1735209670952,0.50851859,95562.0,95561.0,0.87900994]
[1735209671176,0.50951859,95562.0,95561.0,0.88800994]
[1735209671393,0.50951859,95562.0,95561.0,0.90849283]
[1735209671820,0.50951859,95562.0,95561.0,0.88800994]
[1735209672052,0.50951859,95562.0,95561.0,0.286071]
[1735209672293,0.51051859,95562.0,95561.0,0.6860373]
[1735209672855,0.50951859,95562.0,95561.0,0.6710373]
[1735209673108,0.50951859,95562.0,95561.0,0.6770373]
[1735209673317,0.50951859,95562.0,95561.0,0.6860373]
[1735209673525,0.50951859,95562.0,95561.0,0.292071]
[1735209673671,0.50951859,95562.0,95561.0,0.390242]
[1735209673873,0.50951859,95562.0,95561.0,0.490242]
[1735209674725,0.50951859,95562.0,95561.0,0.5360373]
[1735209678127,0.50951859,95562.0,95561.0,0.6860373]
[1735209678326,0.50951859,95562.0,95561.0,0.79002362]
[1735209680306,0.51429344,95562.0,95561.0,0.79002362]
[1735209681975,0.51429344,95562.0,95561.0,0.89400994]
[1735209682560,0.15,95607.0,95604.0,0.0957953]
[1735209682765,0.15,95605.0,95604.0,0.1939663]
[1735209682966,0.25398632,95605.0,95604.0,0.1939663]
[1735209684277,0.25698632,95605.0,95604.0,0.1939663]
[1735209685059,0.265842,95605.0,95604.0,0.1939663]
[1735209685286,0.265842,95605.0,95604.0,0.0957953]
[1735209685427,0.288842,95605.0,95604.0,0.0957953]
[1735209685628,0.337842,95605.0,95604.0,0.0957953]
[1735209685868,0.15,95603.0,95601.0,0.0957953]
[1735209686095,0.25398632,95602.0,95601.0,0.0957953]
[1735209686255,0.26284128,95602.0,95601.0,0.0957953]
[1735209686617,0.309211,95598.0,95597.0,0.0957953]
[1735209686822,0.41319732,95598.0,95597.0,0.0957953]
[1735209687044,0.42205447,95598.0,95597.0,0.0957953]
[1735209688238,0.21484347,95598.0,95597.0,0.0957953]
[1735209688871,0.11484347,95598.0,95597.0,0.0957953]
[1735209689555,0.01085715,95598.0,95597.0,0.1939663]
[1735209689812,0.002,95598.0,95597.0,0.1939663]
[1735209692174,0.0020855,95598.0,95597.0,0.1939663]
[1735209695392,0.0020855,95598.0,95597.0,0.0957953]
[1735209695611,0.0020855,95598.0,95597.0,0.1939663]
[1735209695932,0.1020855,95598.0,95597.0,0.0957953]
[1735209696183,0.20607182,95598.0,95597.0,0.1939663]
[1735209696390,0.21494929,95598.0,95597.0,0.1939663]
[1735209698754,0.01096297,95598.0,95597.0,0.1939663]
[1735209699091,0.01096297,95598.0,95597.0,0.21336293]
[1735209699092,0.0020855,95598.0,95597.0,0.21336293]
[1735209699393,0.0020855,95598.0,95597.0,0.1939663]
[1735209701448,0.10607182,95598.0,95597.0,0.1939663]
[1735209701998,0.11494733,95598.0,95597.0,0.1939663]
[1735209704889,0.01096101,95598.0,95597.0,0.4785773]
[1735209705404,0.0020855,95598.0,95597.0,0.4785773]
[1735209706129,0.0020855,95598.0,95597.0,0.4031773]
[1735209706334,0.0020855,95598.0,95597.0,0.1939663]
[1735209706887,0.0020855,95598.0,95597.0,0.19501223]
[1735209707647,0.0025735,95598.0,95597.0,0.19501223]
[1735209713068,0.0025735,95598.0,95597.0,0.1939663]
[1735209715432,0.0025735,95598.0,95597.0,0.4031773]
[1735209715761,0.0025735,95598.0,95597.0,0.57375613]
[1735209715966,0.0025735,95598.0,95597.0,0.67375613]
[1735209716899,0.0025735,95598.0,95597.0,0.76670339]
[1735209717097,0.0025735,95598.0,95597.0,0.77370339]
[1735209717520,0.0005735,95598.0,95597.0,0.77370339]
[1735209717908,0.0025735,95598.0,95597.0,0.77370339]
[1735209718293,0.0005735,95598.0,95597.0,0.68075613]
[1735209718544,0.0005735,95598.0,95597.0,0.68275613]
[1735209718739,0.0005735,95598.0,95597.0,0.78275613]
[1735209719140,0.0005735,95598.0,95597.0,0.88674245]
[1735209719339,0.00015588,95608.0,95607.0,0.8758553]
[1735209719594,0.00015588,95608.0,95607.0,0.9421663]
[1735209719767,0.00015588,95608.0,95607.0,0.331889]
[1735209720312,0.00015588,95608.0,95607.0,0.5258553]
[1735209720544,0.00015588,95608.0,95607.0,0.43006]
[1735209720714,0.00015588,95608.0,95607.0,0.43906]
[1735209720935,0.00015588,95608.0,95607.0,0.331889]
[1735209721132,0.00015588,95608.0,95607.0,0.3929972]
[1735209721355,0.00015588,95608.0,95607.0,0.31436]
[1735209721529,0.00015588,95608.0,95607.0,0.31636]
[1735209722147,0.00015588,95608.0,95607.0,0.31436]
[1735209722303,0.00015588,95608.0,95607.0,0.4121553]
[1735209722503,0.00015588,95608.0,95607.0,0.46729013]
[1735209722903,0.00015588,95608.0,95607.0,0.47329013]
[1735209723097,0.00015588,95608.0,95607.0,0.46729013]
[1735209723413,0.00015588,95608.0,95607.0,0.47329013]
[1735209723789,0.00015588,95608.0,95607.0,0.47129013]
[1735209723972,0.00015588,95608.0,95607.0,0.47329013]
[1735209724556,0.00015588,95608.0,95607.0,0.47129013]
[1735209724756,0.00015588,95608.0,95607.0,0.47329013]
[1735209726139,0.00015588,95608.0,95607.0,0.4111553]
[1735209727896,0.00024148,95608.0,95607.0,0.4111553]
[1735209728484,0.00024148,95608.0,95607.0,0.31536]
[1735209728687,0.00024148,95608.0,95607.0,0.4111553]
[1735209731657,0.00024148,95608.0,95607.0,0.5879553]
[1735209731863,0.00024148,95608.0,95607.0,0.72757013]
[1735209732404,0.00024148,95608.0,95607.0,0.83155645]
[1735209732703,0.00024148,95608.0,95607.0,0.92555645]
[1735209732904,0.00024148,95608.0,95607.0,1.07555645]
[1735209733104,0.00024148,95608.0,95607.0,1.08455645]
[1735209733355,0.00024148,95608.0,95607.0,1.08255645]
[1735209733564,0.00024148,95608.0,95607.0,1.4317361]
[1735209734497,0.00024148,95608.0,95607.0,1.66656317]
[1735209734751,8.55e-05,95629.0,95615.0,0.3939663]
[1735209734963,8.55e-05,95629.0,95615.0,0.97332125]
[1735209735194,8.55e-05,95629.0,95615.0,1.02322125]
[1735209736585,8.55e-05,95629.0,95615.0,1.03222125]
[1735209737031,8.55e-05,95629.0,95615.0,0.8888383]
[1735209737221,8.55e-05,95629.0,95615.0,0.99482462]
[1735209737687,8.55e-05,95629.0,95615.0,0.99282462]
[1735209738113,8.55e-05,95629.0,95615.0,0.99782462]
[1735209740076,5e-07,95616.0,95615.0,0.99782462]
[1735209740275,5e-07,95616.0,95615.0,1.07442079]
[1735209741561,5e-07,95616.0,95615.0,1.60701825]
[1735209742550,5e-07,95616.0,95615.0,1.55995379]
[1735209743757,5e-07,95616.0,95615.0,1.21468193]
[1735209744621,8.55e-05,95629.0,95615.0,1.31468193]
[1735209744828,0.00013748,95629.0,95628.0,0.8763093]
[1735209745029,0.00013748,95629.0,95628.0,0.98029562]
[1735209746531,0.00013748,95629.0,95628.0,0.98929562]
[1735209747277,0.00113748,95629.0,95628.0,0.99529562]
[1735209747476,0.00113748,95629.0,95628.0,1.18501045]
[1735209747898,0.3926133,95633.0,95632.0,0.5439663]
[1735209748081,0.3926133,95633.0,95632.0,0.77115262]
[1735209748257,0.39023995,95633.0,95632.0,0.77115262]
[1735209748465,0.39023995,95633.0,95632.0,0.84774879]
[1735209748917,0.34841395,95633.0,95632.0,0.84774879]
[1735209749123,0.28567495,95633.0,95632.0,0.85674879]
[1735209749309,0.2612595,95633.0,95632.0,0.85674879]
[1735209749611,0.1985205,95633.0,95632.0,0.86174879]
[1735209749996,0.1776075,95633.0,95632.0,0.85674879]
[1735209750172,0.15346126,95633.0,95632.0,0.85674879]
[1735209750418,0.15346126,95633.0,95632.0,0.86174879]
[1735209750555,0.13254826,95633.0,95632.0,0.86174879]
[1735209750924,0.09072226,95633.0,95632.0,0.86174879]
[1735209751123,8.56e-05,95663.0,95648.0,0.6030663]
[1735209751336,0.00071984,95649.0,95648.0,0.78503615]
[1735209751791,0.00071984,95649.0,95648.0,0.58104983]
[1735209751991,0.00071984,95649.0,95648.0,0.50514983]
[1735209752227,0.00071984,95649.0,95648.0,0.41597883]
[1735209752430,0.00071984,95649.0,95648.0,0.6120663]
[1735209752673,0.00071984,95649.0,95648.0,0.4120663]
[1735209753601,0.00071984,95649.0,95648.0,0.319271]
[1735209754094,0.00071984,95649.0,95648.0,0.4120663]
[1735209754325,0.00071984,95649.0,95648.0,0.4140663]
[1735209754553,0.00071984,95649.0,95648.0,0.318271]
[1735209754799,0.00071984,95649.0,95648.0,0.4140663]
[1735209754988,0.00071984,95649.0,95648.0,0.4050663]
[1735209755254,0.00071984,95649.0,95648.0,0.4130663]
[1735209755515,0.00071984,95649.0,95648.0,0.4050663]
[1735209755899,0.00071984,95649.0,95648.0,0.4120663]
[1735209757132,0.00071984,95649.0,95648.0,0.50509443]
[1735209757444,0.00071984,95649.0,95648.0,0.49609443]
[1735209757673,0.00071984,95649.0,95648.0,0.4050663]
[1735209757910,0.00071984,95649.0,95648.0,0.4120663]
[1735209758146,0.08071984,95649.0,95648.0,0.4120663]
[1735209758400,0.08071984,95649.0,95648.0,0.3138953]
[1735209758622,0.08071984,95649.0,95648.0,0.2029663]
[1735209761210,0.08071984,95649.0,95648.0,0.107171]
[1735209761611,0.08990142,95649.0,95648.0,0.107171]
[1735209761957,0.08990142,95649.0,95648.0,0.2009663]
[1735209762105,0.08990142,95649.0,95648.0,0.1939663]
[1735209762317,0.09090142,95649.0,95648.0,0.098171]
[1735209762523,0.09090142,95649.0,95648.0,0.099171]
[1735209762715,0.08990142,95649.0,95648.0,0.099171]
[1735209762901,0.09090142,95649.0,95648.0,0.099171]
[1735209763098,0.09090142,95649.0,95648.0,0.1949663]
[1735209763502,0.08990142,95649.0,95648.0,0.1939663]
[1735209763697,0.09090142,95649.0,95648.0,0.1939663]
[1735209763928,0.09090142,95649.0,95648.0,0.1959663]
[1735209764640,0.09090142,95649.0,95648.0,0.25738413]
[1735209764821,0.09090142,95649.0,95648.0,0.1939663]
[1735209764822,0.00171984,95649.0,95648.0,0.1939663]
[1735209765038,0.00071984,95649.0,95648.0,0.1969663]
[1735209765160,0.00080544,95649.0,95648.0,0.1939663]
[1735209765678,0.00080544,95649.0,95648.0,0.1969663]
[1735209767058,0.00080544,95649.0,95648.0,0.1939663]
[1735209767221,0.00080544,95649.0,95648.0,0.1979663]
[1735209769527,0.08,95658.0,95650.0,0.99919456]
[1735209769817,0.00933141,95657.0,95652.0,0.098171]
[1735209770023,0.00933141,95657.0,95656.0,0.0957953]
[1735209770363,0.13631773,95657.0,95656.0,0.0957953]
[1735209770785,0.13631773,95657.0,95655.0,0.0957953]
[1735209770786,0.023,95656.0,95655.0,0.0957953]
[1735209770990,0.123,95651.0,95650.0,0.99919456]
[1735209771192,0.51517986,95651.0,95650.0,0.99919456]
[1735209771621,1.67872686,95651.0,95650.0,0.99919456]
[1735209771843,1.54931186,95651.0,95650.0,0.99919456]
[1735209772090,2.46814086,95651.0,95650.0,0.99919456]
[1735209772723,2.48869776,95651.0,95650.0,0.99919456]
[1735209772926,2.59468408,95651.0,95650.0,0.99919456]
[1735209773126,2.49069776,95651.0,95650.0,0.99919456]
[1735209773316,2.48869776,95651.0,95650.0,0.99919456]
[1735209773498,2.48786876,95651.0,95650.0,0.99919456]
[1735209773774,2.49269776,95651.0,95650.0,0.99919456]
[1735209774124,2.49469776,95651.0,95650.0,0.99919456]
[1735209774693,2.49469776,95651.0,95650.0,1.09919456]
[1735209774965,2.49069776,95651.0,95650.0,1.09919456]
[1735209775430,2.49269776,95651.0,95650.0,1.09919456]
[1735209775656,2.20945576,95651.0,95650.0,1.09919456]
[1735209775804,1.55782476,95651.0,95650.0,1.09919456]
[1735209776018,1.45673676,95651.0,95650.0,1.09919456]
[1735209776424,1.54981678,95651.0,95650.0,1.09919456]
[1735209776597,1.67343178,95651.0,95650.0,1.09919456]
[1735209777308,1.55181678,95651.0,95650.0,1.09919456]
[1735209777496,1.55190238,95651.0,95650.0,1.09919456]
[1735209777904,1.45682236,95651.0,95650.0,1.09919456]
[1735209778114,1.45282236,95651.0,95650.0,1.09919456]
[1735209778339,1.45882236,95651.0,95650.0,1.09919456]
[1735209778518,1.45682236,95651.0,95650.0,1.09919456]
[1735209778750,1.97756236,95651.0,95650.0,1.09919456]
[1735209779210,1.98156236,95651.0,95650.0,1.09919456]
[1735209779829,1.97756236,95651.0,95650.0,1.09919456]
[1735209780037,1.97556236,95651.0,95650.0,1.09919456]
[1735209780459,1.97756236,95651.0,95650.0,1.09919456]
[1735209781129,1.98156236,95651.0,95650.0,1.09919456]
[1735209781946,2.04449236,95651.0,95650.0,1.09919456]
[1735209784157,2.03849236,95651.0,95650.0,1.09919456]
[1735209784359,2.04249236,95651.0,95650.0,1.09919456]
[1735209784525,2.04449236,95651.0,95650.0,1.09919456]
[1735209784976,2.04049236,95651.0,95650.0,1.09919456]
[1735209785146,2.04449236,95651.0,95650.0,1.09919456]
[1735209786888,2.04249236,95651.0,95650.0,1.09919456]
[1735209787142,2.04049236,95651.0,95650.0,1.09919456]
[1735209787361,2.04349236,95651.0,95650.0,1.09919456]
[1735209787780,2.04049236,95651.0,95650.0,1.09919456]
[1735209788005,2.03849236,95651.0,95650.0,1.09919456]
[1735209788256,2.04349236,95651.0,95650.0,1.09919456]
[1735209788469,2.04149236,95651.0,95650.0,1.09919456]
[1735209788679,2.03849236,95651.0,95650.0,1.09919456]
[1735209788892,2.04349236,95651.0,95650.0,1.09919456]
[1735209790406,1.30341914,95651.0,95650.0,1.30135188]
[1735209790614,0.79941914,95651.0,95650.0,1.30135188]
[1735209790817,0.79941914,95651.0,95650.0,1.09919456]
[1735209791046,0.79941914,95651.0,95650.0,1.19736556]
[1735209791243,0.79641914,95651.0,95650.0,1.19736556]
[1735209791591,0.79741914,95651.0,95650.0,1.19736556]
[1735209792219,0.94441914,95651.0,95650.0,1.19736556]
[1735209793992,0.94641914,95651.0,95650.0,1.19736556]
[1735209794466,0.94441914,95651.0,95650.0,1.19736556]
[1735209794677,0.94441914,95651.0,95650.0,1.19936556]
[1735209794892,0.94441914,95651.0,95650.0,1.19736556]
[1735209795172,0.94441914,95651.0,95650.0,1.20036556]
[1735209795467,0.68241914,95651.0,95650.0,1.19736556]
[1735209795679,0.53241914,95651.0,95650.0,1.19736556]
[1735209796504,0.53441914,95651.0,95650.0,1.19736556]
[1735209797051,0.53241914,95651.0,95650.0,1.19736556]
[1735209797259,0.53441914,95651.0,95650.0,1.19736556]
[1735209797440,0.53441914,95651.0,95650.0,1.29316086]
[1735209797664,0.53441914,95651.0,95650.0,1.40210718]
[1735209797891,0.53241914,95651.0,95650.0,1.52740718]
[1735209798332,0.53441914,95651.0,95650.0,1.32762556]
[1735209799525,0.53241914,95651.0,95650.0,1.33062556]
[1735209799899,0.53241914,95651.0,95650.0,1.42642086]
[1735209800305,0.53241914,95651.0,95650.0,1.30112086]
[1735209800513,0.53241914,95651.0,95650.0,1.20532556]
[1735209800712,0.53241914,95651.0,95650.0,1.20232556]
[1735209801172,0.5228256,95651.0,95650.0,1.30212086]
[1735209801352,0.5238256,95651.0,95650.0,1.29812086]
[1735209801555,0.5238256,95651.0,95650.0,1.30012086]
[1735209801556,0.53177277,95651.0,95650.0,1.30012086]
[1735209801982,0.53177277,95651.0,95650.0,1.29812086]
[1735209802160,0.53177277,95651.0,95650.0,1.30012086]
[1735209802536,0.53077277,95651.0,95650.0,1.30012086]
[1735209802920,0.53177277,95651.0,95650.0,1.30012086]
[1735209805671,0.53077277,95651.0,95650.0,1.30012086]
[1735209806088,0.53177277,95651.0,95650.0,1.29812086]
[1735209806323,0.63575909,95651.0,95650.0,1.10415456]
[1735209806527,0.63475909,95651.0,95650.0,1.10415456]
[1735209807389,0.65775909,95651.0,95650.0,1.10615456]
[1735209807587,0.65875909,95651.0,95650.0,1.10415456]
[1735209808013,0.73795909,95651.0,95650.0,1.10415456]
[1735209808824,0.73695909,95651.0,95650.0,1.10415456]
[1735209809033,0.73695909,95651.0,95650.0,1.10615456]
[1735209809233,0.73895909,95651.0,95650.0,1.10615456]
[1735209809664,0.73695909,95651.0,95650.0,1.10615456]
[1735209809870,0.73795909,95651.0,95650.0,1.10615456]
[1735209810255,0.73695909,95651.0,95650.0,1.10615456]
[1735209810832,0.73895909,95651.0,95650.0,1.10415456]
[1735209811039,0.74095909,95651.0,95650.0,1.10415456]
[1735209811403,0.73895909,95651.0,95650.0,1.10415456]
[1735209811766,0.74095909,95651.0,95650.0,1.10415456]
[1735209811979,0.73695909,95651.0,95650.0,1.10415456]
[1735209812110,0.73995909,95651.0,95650.0,1.10415456]
[1735209812310,0.66075909,95651.0,95650.0,1.10415456]